bitfinex-derivatives/quotes_BTCF0:USTF0_20251128
["timestamp","ask_amount","ask_price","bid_price","bid_amount"]
[1764356475186,0.427414,90949.0,90948.0,0.06018109]
[1764356478797,0.001,90949.0,90948.0,0.07117519]
[1764356480788,0.001,90949.0,90948.0,0.08390519]
[1764356484498,1.5,90958.0,90957.0,0.0558231]
[1764356484801,0.01298483,90966.0,90965.0,0.0558221]
[1764356485098,1.51298483,90966.0,90965.0,0.0558221]
[1764356485600,1.51298483,90966.0,90965.0,0.04483]
[1764356486000,1.54138175,90966.0,90965.0,0.04483]
[1764356486186,1.51398483,90966.0,90965.0,0.04483]
[1764356486995,1.90398483,90966.0,90965.0,0.04483]
[1764356487192,0.0364133,90955.0,90954.0,0.02101]
[1764356487398,0.4864133,90955.0,90954.0,0.0320034]
[1764356487606,0.4864133,90955.0,90954.0,0.04241]
[1764356488302,0.4874133,90955.0,90954.0,0.04241]
[1764356488902,0.036414,90949.0,90948.0,0.07204109]
[1764356489093,0.206414,90949.0,90948.0,0.07204109]
[1764356489298,0.466414,90949.0,90948.0,0.07204109]
[1764356490200,0.02542,90949.0,90948.0,0.07204109]
[1764356490407,0.39542,90949.0,90948.0,0.07204109]
[1764356491194,0.39642,90949.0,90948.0,0.07204109]
[1764356494398,0.02642,90949.0,90948.0,0.07204109]
[1764356494602,0.001,90949.0,90948.0,0.07204109]
[1764356495194,0.011994,90949.0,90948.0,0.07204109]
[1764356495507,0.001,90949.0,90948.0,0.07204109]
[1764356496009,0.001,90949.0,90948.0,0.46204109]
[1764356496600,0.001,90949.0,90948.0,0.07204109]
[1764356497006,0.001,90949.0,90948.0,0.44204109]
[1764356497703,0.0384124,90963.0,90962.0,0.04241]
[1764356498907,0.0394124,90963.0,90962.0,0.04241]
[1764356500102,0.0594124,90963.0,90962.0,0.04241]
[1764356500408,0.0394124,90963.0,90962.0,0.04241]
[1764356501002,0.0594124,90963.0,90962.0,0.04241]
[1764356501205,0.0394124,90963.0,90962.0,0.0534024]
[1764356501599,0.0394124,90963.0,90962.0,0.04241]
[1764356501802,0.02842,90963.0,90962.0,0.04241]
[1764356502097,0.001,90963.0,90962.0,0.0534024]
[1764356502702,0.01471,90963.0,90962.0,0.0534024]
[1764356502903,0.02842,90963.0,90962.0,0.0534024]
[1764356503505,0.055923,90963.0,90962.0,0.0534024]
[1764356503707,0.02842,90963.0,90962.0,0.0534024]
[1764356504113,0.055923,90963.0,90962.0,0.0534024]
[1764356504312,0.26842,90963.0,90962.0,0.0534024]
[1764356505105,0.001,90963.0,90962.0,0.0534024]
[1764356505615,0.01471,90963.0,90962.0,0.0534024]
[1764356506408,0.001,90963.0,90962.0,0.07075412]
[1764356506716,0.02842,90963.0,90962.0,0.07075412]
[1764356507616,0.01471,90963.0,90962.0,0.07075412]
[1764356509014,0.001,90963.0,90962.0,0.07475412]
[1764356509517,0.001,90963.0,90962.0,0.07075412]
[1764356509717,0.001,90963.0,90962.0,0.07475412]
[1764356510017,0.00027483,90966.0,90963.0,0.0109921]
[1764356510018,0.0109922,90964.0,90963.0,0.0109921]
[1764356510204,0.01371,90964.0,90963.0,0.0534021]
[1764356510519,0.02769483,90966.0,90965.0,0.0534021]
[1764356510717,0.08769483,90966.0,90965.0,0.0534021]
[1764356512617,0.08769483,90966.0,90965.0,0.0554021]
[1764356512814,0.08769483,90966.0,90965.0,0.0687321]
[1764356513013,0.06027483,90966.0,90965.0,0.0667321]
[1764356513213,0.00027483,90966.0,90965.0,0.0697321]
[1764356514614,0.00027483,90966.0,90965.0,0.4297321]
[1764356515019,0.00027483,90966.0,90965.0,0.4267321]
[1764356515316,0.00027483,90966.0,90965.0,0.0717321]
[1764356515523,0.00027483,90966.0,90965.0,0.4917321]
[1764356516121,0.00027483,90966.0,90965.0,0.0717321]
[1764356516421,0.0249801,90982.0,90981.0,0.0542102]
[1764356516617,0.06659638,90982.0,90981.0,0.0542102]
[1764356518622,0.02746628,90982.0,90981.0,0.0552102]
[1764356519217,0.04161628,90982.0,90981.0,0.4052102]
[1764356519411,0.01415,90995.0,90994.0,0.0109885]
[1764356519612,0.0392883,90998.0,90997.0,0.04322]
[1764356519826,0.0492883,90998.0,90997.0,0.04322]
[1764356520018,0.4192883,90998.0,90997.0,0.04322]
[1764356520221,1.9192883,90998.0,90997.0,0.04322]
[1764356520413,0.4192883,90998.0,90997.0,0.04322]
[1764356520830,0.4083,90998.0,90997.0,0.0542082]
[1764356521023,0.02415,90998.0,90997.0,0.0542082]
[1764356521321,0.7983,90998.0,90997.0,0.04322]
[1764356521823,0.4383,90998.0,90997.0,0.04322]
[1764356522031,0.0392897,90985.0,90984.0,0.05703]
[1764356522328,0.0592897,90985.0,90984.0,0.05703]
[1764356522909,0.0392904,90979.0,90978.0,0.04322]
[1764356523110,0.4792904,90979.0,90978.0,0.04322]
[1764356523321,0.4792904,90979.0,90978.0,0.05703]
[1764356524210,0.0283,90979.0,90978.0,0.05703]
[1764356524522,0.0283,90979.0,90978.0,0.07473377]
[1764356524729,0.0283,90979.0,90978.0,0.07673377]
[1764356528021,0.01415,90979.0,90978.0,0.07673377]
[1764356528411,0.0109877,91002.0,90978.0,0.07673377]
[1764356528412,0.01415,90986.0,90985.0,0.0542097]
[1764356528619,0.0392887,90993.0,90992.0,0.04322]
[1764356528823,0.0892887,90993.0,90992.0,0.04322]
[1764356529022,0.0392887,90993.0,90992.0,0.04322]
[1764356529423,0.01415,90996.0,90995.0,0.04322]
[1764356529627,0.02415,90996.0,90995.0,0.04322]
[1764356529825,0.01,90996.0,90995.0,0.04322]
[1764356530328,0.0209883,90996.0,90995.0,0.04322]
[1764356530525,0.02541191,91006.0,91005.0,0.04322]
[1764356530925,0.03956191,91006.0,91005.0,0.04322]
[1764356532024,0.01442471,91006.0,91005.0,0.04322]
[1764356532427,0.01542471,91006.0,91005.0,0.04322]
[1764356534528,0.04957471,91006.0,91005.0,0.04322]
[1764356534730,0.02957471,91006.0,91005.0,0.04322]
[1764356535523,0.04957471,91006.0,91005.0,0.04322]
[1764356535827,0.0392882,90997.0,90996.0,0.02322]
[1764356536029,0.0392887,90993.0,90986.0,0.0001649]
[1764356536226,0.0392894,90987.0,90986.0,0.0001649]
[1764356536419,0.4392894,90987.0,90986.0,0.0001649]
[1764356536624,0.8392894,90987.0,90986.0,0.0001649]
[1764356538237,0.5392894,90987.0,90986.0,0.0233849]
[1764356538432,0.5392894,90987.0,90986.0,0.0593649]
[1764356538633,0.5402894,90987.0,90986.0,0.0593649]
[1764356539632,0.3793,90987.0,90986.0,0.0593649]
[1764356541127,0.0293,90987.0,90986.0,0.0593649]
[1764356541826,0.01515,90987.0,90986.0,0.0593649]
[1764356542227,0.4193,90987.0,90986.0,0.0593649]
[1764356550347,0.01515,91005.0,91004.0,0.04556]
[1764356550545,0.4403,91005.0,91004.0,0.04556]
[1764356550855,0.4303,91005.0,91004.0,0.04556]
[1764356551042,0.0412879,91000.0,90999.0,0.02256]
[1764356551248,0.0303,90997.0,90996.0,0.03527]
[1764356551446,0.4303,90997.0,90996.0,0.03527]
[1764356551748,0.4303,90997.0,90996.0,0.05827]
[1764356551943,0.8503,90997.0,90996.0,0.05827]
[1764356552149,0.0412889,90991.0,90990.0,0.05827]
[1764356552445,0.8012889,90991.0,90990.0,0.02256]
[1764356552645,0.0412894,90987.0,90986.0,0.0696044]
[1764356552846,0.4012894,90987.0,90986.0,0.0696044]
[1764356554239,0.0503,90987.0,90986.0,0.0696044]
[1764356555437,0.3403,90987.0,90986.0,0.0696044]
[1764356557048,0.3512894,90987.0,90986.0,0.0696044]
[1764356558241,0.3403,90987.0,90986.0,0.0696044]
[1764356558444,0.2703,90987.0,90986.0,0.0696044]
[1764356559442,0.6903,90987.0,90986.0,0.0001649]
[1764356559949,0.407002,90987.0,90986.0,0.0001649]
[1764356561046,0.667002,90987.0,90986.0,0.0001649]
[1764356561241,0.437002,90987.0,90986.0,0.0001649]
[1764356561849,0.2703,90987.0,90986.0,0.0001649]
[1764356562044,0.45700121,90987.0,90986.0,0.0001649]
[1764356563248,0.29700121,90987.0,90986.0,0.0457249]
[1764356563453,0.4603,90987.0,90986.0,0.0457249]
[1764356563948,0.4603,90987.0,90986.0,0.0227249]
[1764356564143,0.6703,90987.0,90986.0,0.0001649]
[1764356564345,0.69695688,90987.0,90986.0,0.0001649]
[1764356565553,0.29695688,90987.0,90986.0,0.0001649]
[1764356565744,0.40695688,90987.0,90986.0,0.0001649]
[1764356565940,0.29695688,90987.0,90986.0,0.0227249]
[1764356566148,0.57695688,90987.0,90986.0,0.0227249]
[1764356566447,0.57695688,90987.0,90986.0,0.0001649]
[1764356574255,0.0412911,90973.0,90972.0,0.05827]
[1764356574461,0.0412918,90967.0,90966.0,0.05827]
[1764356574645,0.87795448,90967.0,90966.0,0.04556]
[1764356574851,0.48795448,90967.0,90966.0,0.04556]
[1764356575161,0.48795448,90967.0,90966.0,0.05827]
[1764356576158,0.4612918,90967.0,90966.0,0.05827]
[1764356576764,0.4612918,90967.0,90966.0,0.069262]
[1764356577261,0.4612918,90967.0,90966.0,0.074262]
[1764356578458,0.42,90967.0,90966.0,0.074262]
[1764356578762,0.0304646,90976.0,90975.0,0.0539909]
[1764356578961,0.0604646,90976.0,90975.0,0.0539909]
[1764356579161,0.0453146,90976.0,90975.0,0.0539909]
[1764356579966,0.0153146,90976.0,90975.0,0.0539909]
[1764356580167,0.0001646,90976.0,90975.0,0.0539909]
[1764356580666,0.0001646,90976.0,90975.0,0.0569909]
[1764356584360,0.01515,90996.0,90995.0,0.0539885]
[1764356584668,0.04156191,91006.0,91005.0,0.0539873]
[1764356584859,0.40156191,91006.0,91005.0,0.0539873]
[1764356586667,0.00027471,91006.0,91005.0,0.0539873]
[1764356587665,0.00127471,91006.0,91005.0,0.0539873]
[1764356588371,0.00027471,91006.0,91005.0,0.0539873]
[1764356588566,0.00127471,91006.0,91005.0,0.0539873]
[1764356590861,0.03157471,91006.0,91005.0,0.043]
[1764356592365,0.03157471,91006.0,91005.0,0.05915003]
[1764356594063,0.42157471,91006.0,91005.0,0.05915003]
[1764356594665,0.77157471,91006.0,91005.0,0.01615003]
[1764356594873,0.0303,90997.0,90996.0,0.0575349]
[1764356595062,0.5112882,90997.0,90996.0,0.0575349]
[1764356595668,0.8512882,90997.0,90996.0,0.0001649]
[1764356595965,0.4412882,90997.0,90996.0,0.0001649]
[1764356596262,0.5312882,90997.0,90996.0,0.0441249]
[1764356596760,0.8112882,90997.0,90996.0,0.0216149]
[1764356596961,0.8112882,90997.0,90996.0,0.0001649]
[1764356597166,0.8112882,90997.0,90996.0,0.0441249]
[1764356597672,0.8112882,90997.0,90996.0,0.06058322]
[1764356597871,0.5512882,90997.0,90996.0,0.06058322]
[1764356599458,0.4112882,90997.0,90996.0,0.06058322]
[1764356600876,0.7112882,90997.0,90996.0,0.03807322]
[1764356601174,0.6812882,90997.0,90996.0,0.03807322]
[1764356601373,0.4412882,90997.0,90996.0,0.07333322]
[1764356604167,0.2712882,90997.0,90996.0,0.07333322]
[1764356604369,0.6912882,90997.0,90996.0,0.07333322]
[1764356604677,0.4112882,90997.0,90996.0,0.07333322]
[1764356606471,0.0303,90997.0,90996.0,0.07333322]
[1764356606678,0.0109881,90999.0,90998.0,0.04377]
[1764356606679,0.01515,90999.0,90998.0,0.04377]
[1764356607376,0.041288,90999.0,90998.0,0.04377]
[1764356608173,0.0313,90999.0,90998.0,0.04377]
[1764356609080,0.042288,90999.0,90998.0,0.04377]
[1764356616184,0.06865628,90999.0,90998.0,0.04377]
[1764356619981,0.0412882,90997.0,90996.0,0.01662322]
[1764356620180,0.83766226,90997.0,90996.0,0.01662322]
[1764356620685,0.83766226,90997.0,90975.0,0.0109908]
[1764356620686,0.0412902,90981.0,90980.0,0.05698]
[1764356620980,0.0303,90981.0,90980.0,0.05698]
[1764356621686,0.0303,90981.0,90980.0,0.04377]
[1764356621687,0.4003,90981.0,90980.0,0.04377]
[1764356621985,0.4003,90981.0,90975.0,0.01321]
[1764356621986,0.0303,90976.0,90975.0,0.05698]
[1764356622186,0.0412908,90976.0,90975.0,0.05698]
[1764356623180,0.0412908,90976.0,90975.0,0.05998]
[1764356623786,0.0412908,90976.0,90975.0,0.07492537]
[1764356624483,0.4512908,90976.0,90975.0,0.07492537]
[1764356624878,0.0303,90976.0,90975.0,0.07492537]
[1764356632688,0.3803,90976.0,90975.0,0.07492537]
[1764356632882,0.8303,90976.0,90975.0,0.07492537]
[1764356633086,0.8303,90976.0,90975.0,0.06171537]
[1764356633792,0.8303,90976.0,90975.0,0.03915537]
[1764356635586,0.8303,90976.0,90955.0,0.01321]
[1764356635587,0.01515,90956.0,90955.0,0.01321]
[1764356635786,0.4412932,90956.0,90955.0,0.05698]
[1764356635989,0.0412938,90951.0,90950.0,0.05747]
[1764356636293,0.4412938,90951.0,90950.0,0.05747]
[1764356637385,0.4412938,90951.0,90950.0,0.05847]
[1764356637691,0.4412938,90951.0,90950.0,0.07362868]
[1764356638392,0.4412938,90951.0,90950.0,0.08162868]
[1764356639390,0.0803,90951.0,90950.0,0.08162868]
[1764356640290,0.3503,90951.0,90950.0,0.08162868]
[1764356641884,0.0903,90951.0,90950.0,0.08162868]
[1764356642692,0.4103,90951.0,90950.0,0.08162868]
[1764356642892,0.0803,90951.0,90950.0,0.08162868]
[1764356643080,0.0303,90951.0,90950.0,0.08162868]
[1764356643285,0.4603,90951.0,90950.0,0.08162868]
[1764356643485,0.1903,90951.0,90950.0,0.08162868]
[1764356645292,0.3803,90951.0,90950.0,0.08162868]
[1764356648193,0.7703,90951.0,90950.0,0.08162868]
[1764356650485,0.7812938,90951.0,90950.0,0.08162868]
[1764356651594,0.3912938,90951.0,90950.0,0.08162868]
[1764356652786,0.3912938,90951.0,90950.0,0.09262258]
[1764356654088,0.2912938,90951.0,90950.0,0.09262258]
[1764356654884,0.0001649,90960.0,90959.0,0.0544928]
[1764356655195,0.0303,90977.0,90972.0,0.014]
[1764356655391,0.0412911,90973.0,90972.0,0.0575]
[1764356655695,0.4312911,90973.0,90972.0,0.0435]
[1764356656397,0.6612911,90973.0,90972.0,0.0435]
[1764356657303,0.6612911,90973.0,90972.0,0.0455]
[1764356659599,0.6612911,90973.0,90972.0,0.002]
[1764356660187,0.68773186,90973.0,90972.0,0.002]
[1764356695612,0.68773186,90973.0,90972.0,0.02393]
[1764356696916,0.68773186,90973.0,90972.0,0.002]
[1764356697828,0.0412922,90964.0,90963.0,0.0001649]
[1764356698028,1.01109296,90964.0,90963.0,0.0001649]
[1764356699320,1.01109296,90964.0,90963.0,0.0041649]
[1764356699522,1.01109296,90964.0,90951.0,0.01299]
[1764356699722,0.0412937,90952.0,90951.0,0.04394]
[1764356699923,0.0412944,90946.0,90945.0,0.04394]
[1764356700112,0.91773516,90946.0,90945.0,0.04394]
[1764356701226,0.91762319,90946.0,90945.0,0.04394]
[1764356701431,0.55762319,90946.0,90945.0,0.04494]
[1764356701721,0.48762319,90946.0,90945.0,0.04794]
[1764356701919,0.91762319,90946.0,90945.0,0.04794]
[1764356703726,0.56762319,90946.0,90945.0,0.04794]
[1764356704222,0.54732319,90946.0,90945.0,0.04794]
[1764356704417,0.43,90946.0,90945.0,0.04794]
[1764356704621,0.0001649,90955.0,90954.0,0.04394]
[1764356704830,0.43643911,90955.0,90954.0,0.04394]
[1764356705421,0.4253149,90955.0,90954.0,0.04394]
[1764356706026,0.1101649,90955.0,90954.0,0.04394]
[1764356706823,0.00717,90984.0,90954.0,0.04394]
[1764356706824,0.03172,90960.0,90959.0,0.0549328]
[1764356707223,0.0080307,90960.0,90959.0,0.0549328]
[1764356707433,7e-07,90960.0,90959.0,0.0549328]
[1764356708025,0.0010007,90960.0,90959.0,0.0549328]
[1764356708421,0.0010007,90960.0,90959.0,0.0109928]
[1764356708625,0.0010007,90960.0,90959.0,0.0549328]
[1764356708919,7e-07,90960.0,90959.0,0.0549328]
[1764356709129,0.0010007,90960.0,90959.0,0.0549328]
[1764356709525,7e-07,90960.0,90959.0,0.4449328]
[1764356710427,7e-07,90960.0,90959.0,0.0549328]
[1764356710629,0.0109918,90968.0,90967.0,0.04394]
[1764356710832,0.3635418,90968.0,90967.0,0.04394]
[1764356711229,0.02255,90968.0,90967.0,0.04394]
[1764356711431,0.0001649,90969.0,90968.0,0.0549317]
[1764356714535,0.0011649,90969.0,90968.0,0.0549317]
[1764356715330,0.0001649,90969.0,90968.0,0.0549317]
[1764356715529,0.0011649,90969.0,90968.0,0.0549317]
[1764356715836,0.0011649,90969.0,90968.0,0.4249317]
[1764356717225,0.0011649,90969.0,90968.0,0.0549317]
[1764356718033,0.0001649,90969.0,90968.0,0.0549317]
[1764356718637,0.0011649,90969.0,90968.0,0.0549317]
[1764356719926,0.0001649,90969.0,90968.0,0.06916737]
[1764356720133,0.0011649,90969.0,90968.0,0.06916737]
[1764356720542,0.0001649,90969.0,90968.0,0.06916737]
[1764356722837,0.0001649,90969.0,90968.0,0.08248737]
[1764356728044,0.0109905,90979.0,90978.0,0.0557305]
[1764356731445,0.0119905,90979.0,90978.0,0.0557305]
[1764356731944,0.0129905,90979.0,90978.0,0.0557305]
[1764356732639,0.3729905,90979.0,90978.0,0.0557305]
[1764356732831,0.3958005,90979.0,90978.0,0.0557305]
[1764356733235,0.3938005,90979.0,90978.0,0.0557305]
[1764356733444,0.3958005,90979.0,90978.0,0.0557305]
[1764356733846,0.3938005,90979.0,90978.0,0.0557305]
[1764356734145,0.3958005,90979.0,90978.0,0.0557305]
[1764356734348,0.44194941,90979.0,90978.0,0.04474]
[1764356734643,0.44394941,90979.0,90978.0,0.04474]
[1764356734945,0.44394941,90979.0,90978.0,0.05871007]
[1764356734946,0.44194941,90979.0,90978.0,0.05871007]
[1764356735148,0.44394941,90979.0,90978.0,0.05871007]
[1764356736741,0.4177105,90979.0,90978.0,0.05871007]
[1764356736943,0.4157105,90979.0,90978.0,0.05871007]
[1764356737143,0.4177105,90979.0,90978.0,0.05871007]
[1764356738041,0.4187105,90979.0,90978.0,0.05871007]
[1764356739349,0.44498644,90979.0,90978.0,0.05871007]
[1764356743746,0.42307644,90979.0,90978.0,0.05871007]
[1764356743947,0.40026644,90979.0,90978.0,0.05871007]
[1764356744142,0.42307644,90979.0,90978.0,0.05871007]
[1764356744343,0.44498644,90979.0,90978.0,0.05871007]
[1764356745745,0.44298644,90979.0,90978.0,0.05871007]
[1764356750548,0.42107634,90979.0,90978.0,0.05871007]
[1764356751458,0.44298634,90979.0,90978.0,0.05871007]
[1764356752655,0.43199594,90979.0,90978.0,0.05871007]
[1764356752848,0.41008594,90979.0,90978.0,0.05871007]
[1764356753163,0.033798,90999.0,90998.0,0.0109878]
[1764356753357,0.45194617,90999.0,90998.0,0.04556]
[1764356754459,0.45194617,90999.0,90998.0,0.0565481]
[1764356755250,0.49194617,90999.0,90998.0,0.0565481]
[1764356755652,0.49694617,90999.0,90998.0,0.0565481]
[1764356759259,0.49694617,90999.0,90998.0,0.0701767]
[1764356759565,0.38694617,90999.0,90998.0,0.0591886]
[1764356761059,0.37595817,90999.0,90998.0,0.0591886]
[1764356763361,0.37595817,90999.0,90998.0,0.0701767]
[1764356766875,0.34972,90999.0,90998.0,0.0701767]
[1764356768568,0.005,90999.0,90998.0,0.0701767]
[1764356769076,0.02713,90999.0,90998.0,0.0701767]
[1764356770959,0.005,90999.0,90998.0,0.0701767]
[1764356771468,0.05032,90999.0,90998.0,0.0701767]
[1764356777174,0.0109864,91013.0,91005.0,0.0567173]
[1764356777374,0.0109868,91009.0,91005.0,0.0567173]
[1764356777878,0.0109852,91025.0,91024.0,0.0237849]
[1764356778073,0.0109852,91025.0,91024.0,0.0695149]
[1764356778074,0.07970544,91025.0,91024.0,0.0695149]
[1764356778382,0.36348,91025.0,91024.0,0.0695149]
[1764356778974,0.3744648,91025.0,91024.0,0.0695149]
[1764356779284,0.7914648,91025.0,91024.0,0.0695149]
[1764356779480,0.3814648,91025.0,91024.0,0.0695149]
[1764356779781,0.37048,91025.0,91024.0,0.0695149]
[1764356782880,0.37048,91025.0,91024.0,0.08344409]
[1764356783578,0.05048,91025.0,91024.0,0.08344409]
[1764356783768,0.0293,91025.0,91024.0,0.08344409]
[1764356784176,0.05048,91025.0,91024.0,0.08344409]
[1764356785875,0.05048,91025.0,91024.0,0.07245919]
[1764356786080,0.05048,91025.0,91024.0,0.05965919]
[1764356786278,0.89048,91025.0,91024.0,0.01392919]
[1764356786478,0.04358,91017.0,91016.0,0.05718]
[1764356786678,0.0545658,91017.0,91016.0,0.05718]
[1764356787878,0.0545658,91017.0,91016.0,0.0711084]
[1764356790988,0.4645658,91017.0,91016.0,0.0711084]
[1764356791283,0.4645658,91017.0,91016.0,0.0139284]
[1764356791483,0.0545683,90996.0,90995.0,0.05699]
[1764356791679,0.4445683,90996.0,90995.0,0.04438]
[1764356792077,0.8945683,90996.0,90995.0,0.04438]
[1764356792483,0.054569,90991.0,90990.0,0.07029072]
[1764356792880,0.054569,90991.0,90990.0,0.08127982]
[1764356793883,0.054569,90991.0,90990.0,0.08227982]
[1764356794289,0.054569,90991.0,90990.0,0.08727982]
[1764356794584,0.054569,90991.0,90990.0,0.08627982]
[1764356795085,0.454569,90991.0,90990.0,0.05968072]
[1764356795287,0.454569,90991.0,90990.0,0.01530072]
[1764356795485,0.894569,90991.0,90990.0,0.01530072]
[1764356795679,0.894569,90991.0,90990.0,0.002]
[1764356795880,0.13078811,90991.0,90990.0,0.04638]
[1764356796693,0.054569,90991.0,90990.0,0.05899]
[1764356796886,0.054569,90991.0,90990.0,0.05799]
[1764356797094,0.04358,90991.0,90990.0,0.05799]
[1764356797487,0.04358,90991.0,90990.0,0.05699]
[1764356798083,0.04358,90991.0,90990.0,0.05799]
[1764356798498,0.04358,90991.0,90990.0,0.05699]
[1764356798789,0.04358,90991.0,90990.0,0.05899]
[1764356801080,0.42358,90991.0,90990.0,0.05899]
[1764356801285,0.16358,90991.0,90990.0,0.05899]
[1764356801582,0.04358,90991.0,90990.0,0.05899]
[1764356801992,0.42358,90991.0,90990.0,0.05899]
[1764356803492,0.04358,90991.0,90990.0,0.05899]
[1764356806591,0.84358,90991.0,90990.0,0.04638]
[1764356806791,0.84358,90991.0,90990.0,0.002]
[1764356816502,0.86978302,90991.0,90990.0,0.002]
[1764356816802,0.84358,90991.0,90990.0,0.002]
[1764356819600,1.04306203,90991.0,90990.0,0.002]
[1764356820805,0.0551505,90978.0,90977.0,0.00011934]
[1764356820995,0.04416,90941.0,90940.0,0.13488662]
[1764356821194,0.0109956,90936.0,90932.0,0.0554461]
[1764356821493,0.04416,90933.0,90932.0,0.04445]
[1764356821800,0.04416,90933.0,90932.0,0.0554461]
[1764356822003,0.00010702,90933.0,90932.0,0.0554461]
[1764356822498,0.00010702,90933.0,90932.0,0.0574461]
[1764356823204,0.00010702,90933.0,90932.0,0.0584461]
[1764356823396,0.00016489,90942.0,90941.0,0.055445]
[1764356823601,0.05016489,90942.0,90941.0,0.055445]
[1764356824199,0.07312489,90942.0,90941.0,0.055445]
[1764356824502,0.05016489,90942.0,90941.0,0.055445]
[1764356824705,0.00016489,90942.0,90941.0,0.475445]
[1764356824895,0.0109897,90986.0,90956.0,0.04445]
[1764356824896,0.0551531,90957.0,90956.0,0.04445]
[1764356827104,0.0551531,90957.0,90956.0,0.0554432]
[1764356827502,0.00016465,90966.0,90951.0,0.01293]
[1764356827503,0.05531665,90966.0,90965.0,0.05738]
[1764356827807,0.45432465,90966.0,90965.0,0.05738]
[1764356828010,0.00016465,90966.0,90965.0,0.05738]
[1764356829408,0.00116465,90966.0,90965.0,0.05738]
[1764356831304,0.05631665,90966.0,90965.0,0.05738]
[1764356835302,0.05631665,90966.0,90965.0,0.07076744]
[1764356836916,0.08290593,90966.0,90965.0,0.07076744]
[1764356837913,0.02775393,90966.0,90965.0,0.07076744]
[1764356838099,0.07122393,90966.0,90965.0,0.07076744]
[1764356838810,0.07122752,90966.0,90965.0,0.07076744]
[1764356839810,0.08221952,90966.0,90965.0,0.07076744]
[1764356841106,0.49221952,90966.0,90965.0,0.05783744]
[1764356841301,0.0109935,90953.0,90952.0,0.16374]
[1764356841506,0.51106811,90953.0,90952.0,0.16374]
[1764356842304,0.51106811,90953.0,90952.0,0.04484]
[1764356842509,0.51106811,90953.0,90952.0,0.04684]
[1764356843504,0.87106811,90953.0,90952.0,0.002]
[1764356843711,0.0544641,90948.0,90936.0,0.01376]
[1764356844011,0.88909871,90948.0,90947.0,0.01313445]
[1764356844217,0.88909871,90948.0,90947.0,0.00016489]
[1764356844810,0.89109871,90948.0,90947.0,0.00016489]
[1764356845208,0.88909871,90948.0,90947.0,0.00016489]
[1764356845409,0.89209871,90948.0,90947.0,0.00016489]
[1764356846324,0.89209871,90948.0,90930.0,0.17686937]
[1764356846325,0.0553062,90931.0,90930.0,0.21975937]
[1764356846508,0.04431,90931.0,90930.0,0.06993789]
[1764356846909,0.02282,90931.0,90930.0,0.06993789]
[1764356847412,0.0109961,90933.0,90932.0,0.04289]
[1764356847611,0.0109956,90936.0,90932.0,0.04289]
[1764356847812,0.055306,90934.0,90930.0,0.03804409]
[1764356848009,0.055306,90934.0,90933.0,0.04289]
[1764356848717,0.0553053,90939.0,90936.0,0.01354]
[1764356849013,0.0553053,90939.0,90938.0,0.04289]
[1764356849014,0.1053053,90939.0,90938.0,0.04289]
[1764356849209,0.3353053,90939.0,90938.0,0.04289]
[1764356850530,0.3373053,90939.0,90938.0,0.04289]
[1764356851420,0.3353053,90939.0,90938.0,0.04289]
[1764356851628,0.3373053,90939.0,90938.0,0.04289]
[1764356854714,0.00016489,90940.0,90939.0,0.0109952]
[1764356854919,0.0553033,90955.0,90954.0,0.05643]
[1764356855217,0.4253033,90955.0,90954.0,0.05643]
[1764356856431,0.05546685,90964.0,90963.0,0.04289]
[1764356856626,0.45546685,90964.0,90963.0,0.04289]
[1764356857419,0.45946685,90964.0,90963.0,0.04289]
[1764356857621,0.45946685,90964.0,90954.0,0.17664937]
[1764356857622,0.055304,90949.0,90948.0,0.05643]
[1764356857927,0.04431,90949.0,90948.0,0.05643]
[1764356858329,0.0109939,90950.0,90949.0,0.053884]
[1764356858543,0.0553034,90955.0,90954.0,0.01354]
[1764356858844,0.0753034,90955.0,90954.0,0.05643]
[1764356859153,0.0553034,90955.0,90954.0,0.05643]
[1764356859343,0.0338129,90958.0,90957.0,0.04289]
[1764356859850,0.0338126,90962.0,90961.0,0.02127]
[1764356860051,0.0338126,90962.0,90958.0,0.0109929]
[1764356860052,0.00016465,90964.0,90963.0,0.04289]
[1764356860343,0.04447465,90964.0,90963.0,0.04289]
[1764356861029,0.46447465,90964.0,90963.0,0.04289]
[1764356861233,0.46647465,90964.0,90963.0,0.04289]
[1764356864149,0.46447465,90964.0,90963.0,0.04289]
[1764356864439,0.46647465,90964.0,90963.0,0.04289]
[1764356865236,0.46647465,90964.0,90963.0,0.05547557]
[1764356865645,0.04647465,90964.0,90963.0,0.05547557]
[1764356865846,0.46647465,90964.0,90963.0,0.05547557]
[1764356868343,0.24498465,90964.0,90963.0,0.05547557]
[1764356868550,0.26647465,90964.0,90963.0,0.05547557]
[1764356869950,0.27746685,90964.0,90963.0,0.05547557]
[1764356870444,0.27546685,90964.0,90963.0,0.05547557]
[1764356870750,0.27746685,90964.0,90963.0,0.05547557]
[1764356871845,0.27546685,90964.0,90963.0,0.05547557]
[1764356872047,0.27746685,90964.0,90963.0,0.05547557]
[1764356872448,0.27546685,90964.0,90963.0,0.05547557]
[1764356872749,0.27746685,90964.0,90963.0,0.05547557]
[1764356878554,0.27846685,90964.0,90963.0,0.05547557]
[1764356879957,0.27746685,90964.0,90963.0,0.05547557]
[1764356880559,0.27746685,90964.0,90963.0,0.01258557]
[1764356880750,0.0560233,90955.0,90954.0,0.21981569]
[1764356880945,0.2160233,90955.0,90954.0,0.04305]
[1764356881247,0.056024,90949.0,90948.0,0.05659]
[1764356882557,0.057024,90949.0,90948.0,0.05659]
[1764356884959,0.057024,90949.0,90948.0,0.06950226]
[1764356885451,0.056024,90949.0,90948.0,0.06950226]
[1764356885652,0.4939257,90949.0,90948.0,0.05596226]
[1764356885959,0.3439257,90949.0,90948.0,0.05596226]
[1764356886561,0.3429257,90949.0,90948.0,0.05596226]
[1764356886762,0.319024,90949.0,90948.0,0.05596226]
[1764356886954,0.059024,90949.0,90948.0,0.05596226]
[1764356887947,0.056024,90949.0,90948.0,0.06695636]
[1764356888152,0.058024,90949.0,90948.0,0.06695636]
[1764356888559,0.056024,90949.0,90948.0,0.06695636]
[1764356888754,0.058024,90949.0,90948.0,0.06695636]
[1764356889562,0.056024,90949.0,90948.0,0.06695636]
[1764356891157,0.057024,90949.0,90948.0,0.06695636]
[1764356891560,0.056024,90949.0,90948.0,0.06695636]
[1764356891861,0.057024,90949.0,90948.0,0.06695636]
[1764356892657,0.056024,90949.0,90948.0,0.05596226]
[1764356892855,0.057024,90949.0,90948.0,0.05596226]
[1764356893050,0.035154,90949.0,90948.0,0.06695636]